bitfinex/quotes_SOLUSD_20260202
["timestamp","ask_amount","ask_price","bid_price","bid_amount"]
[1770042469944,9.77047655,103.39,103.35,2.46603636]
[1770042470341,0.77202771,103.39,103.35,2.46603636]
[1770042470734,0.77202771,103.39,103.36,2.35590227]
[1770042474037,4.37393262,103.39,103.36,2.35590227]
[1770042475444,0.77202771,103.39,103.36,2.35590227]
[1770042476434,0.14216157,103.41,103.37,2.35590227]
[1770042476435,4.71044253,103.41,103.37,2.35590227]
[1770042476824,1.10853762,103.41,103.37,2.35590227]
[1770042478655,1.10853762,103.41,103.37,5.95780718]
[1770042479147,1.10853762,103.41,103.37,2.35590227]
[1770042479731,4.71044253,103.41,103.37,2.35590227]
[1770042480254,1.05704443,103.44,103.4,2.35590227]
[1770042480446,1.05704443,103.44,103.41,2.35590227]
[1770042481457,4.65894934,103.44,103.4,2.35590227]
[1770042481627,1.07907056,103.43,103.4,2.35590227]
[1770042482449,1.10085175,103.42,103.39,2.35590227]
[1770042482632,3.60190491,103.43,103.37,2.35590227]
[1770042482633,4.70275666,103.41,103.37,2.35590227]
[1770042484448,4.7015695,103.41,103.37,2.35590227]
[1770042484753,4.74439284,103.4,103.37,2.35590227]
[1770042485050,4.74439284,103.42,103.38,2.35590227]
[1770042486048,13.23685048,103.45,103.4,2.35590227]
[1770042486049,1.1855223,103.44,103.4,2.35590227]
[1770042486248,1.1855223,103.43,103.4,2.35590227]
[1770042486442,4.78624005,103.43,103.4,2.35590227]
[1770042486747,4.78624005,103.43,103.39,2.35590227]
[1770042487448,1.34823349,103.44,103.4,2.35590227]
[1770042487646,1.20607192,103.44,103.4,3.60071775]
[1770042487832,1.20607192,103.44,103.41,2.35590227]
[1770042489553,6.13205015,103.47,103.43,2.35590227]
[1770042489750,7.37850646,103.47,103.43,2.35590227]
[1770042489946,10.97922421,103.47,103.43,2.35590227]
[1770042491747,1.28592925,103.45,103.42,2.35590227]
[1770042495351,3.60071775,103.46,103.42,2.35590227]
[1770042495650,6.13205015,103.47,103.44,2.35590227]
[1770042496049,6.13205015,103.47,103.45,2.35590227]
[1770042501379,6.13205015,103.47,103.44,2.68179701]
[1770042501657,11.22002548,103.47,103.44,2.68179701]
[1770042502238,7.61930773,103.47,103.44,2.68179701]
[1770042502638,6.13205015,103.47,103.44,2.68179701]
[1770042503959,0.1,103.48,103.47,2.68179701]
[1770042504259,1.52117125,103.5,103.47,2.68179701]
[1770042505257,5.121889,103.5,103.47,2.68179701]
[1770042506664,1.52117125,103.5,103.47,2.68179701]
[1770042509061,2.62753981,103.51,103.47,3.60071775]
[1770042509364,0.1,103.52,103.49,2.68179701]
[1770042509548,2.72753981,103.52,103.49,2.68179701]
[1770042510150,6.32825756,103.52,103.49,2.68179701]
[1770042510967,2.72753981,103.52,103.49,2.68179701]
[1770042511371,6.32825756,103.52,103.49,2.68179701]
[1770042513372,2.72753981,103.52,103.49,2.68179701]
[1770042513880,6.22825756,103.51,103.47,2.68179701]
[1770042514074,2.62753981,103.5,103.47,2.68179701]
[1770042515573,2.62753981,103.49,103.46,26.86]
[1770042515772,2.62753981,103.49,103.46,29.54179701]
[1770042515971,2.62753981,103.49,103.47,2.68179701]
[1770042516271,6.22825756,103.5,103.47,2.68179701]
[1770042517274,2.62753981,103.49,103.46,26.86]
[1770042517479,2.62753981,103.48,103.45,2.68179701]
[1770042517976,3.60071775,103.49,103.43,29.54179701]
[1770042517977,2.62753981,103.46,103.43,29.54179701]
[1770042518160,2.62753981,103.46,103.43,2.68179701]
[1770042519360,6.22825756,103.47,103.43,2.68179701]
[1770042521568,0.28432314,103.49,103.41,29.54179701]
[1770042521569,3.60071775,103.45,103.41,29.54179701]
[1770042521779,2.62753981,103.44,103.41,29.54179701]
[1770042522072,6.22825756,103.45,103.42,2.68179701]
[1770042524566,2.62753981,103.45,103.42,2.68179701]
[1770042528487,2.62753981,103.45,103.41,3.60071775]
[1770042528883,2.96200889,103.44,103.4,3.60071775]
[1770042529080,2.96200889,103.43,103.39,36.62239798]
[1770042529274,6.56272664,103.44,103.39,36.62239798]
[1770042530362,6.56272664,103.44,103.4,3.13410564]
[1770042531167,2.96200889,103.44,103.41,3.13410564]
[1770042531362,3.01857011,103.45,103.42,3.13410564]
[1770042534290,6.61928786,103.45,103.41,3.13410564]
[1770042536396,3.01857011,103.44,103.41,3.13410564]
[1770042542797,3.01857011,103.44,103.41,6.73482339]
[1770042542999,3.01857011,103.44,103.41,3.13410564]
[1770042544501,3.01857011,103.47,103.44,3.13410564]
[1770042544679,3.01857011,103.48,103.45,3.13410564]
[1770042544882,3.59644976,103.49,103.41,33.84583962]
[1770042544883,6.61501987,103.51,103.47,3.13410564]
[1770042545085,3.01857011,103.51,103.48,3.13410564]
[1770042546202,3.01857011,103.5,103.47,3.13410564]
[1770042547389,3.01857011,103.49,103.46,3.13410564]
[1770042548199,3.01857011,103.48,103.44,6.7305554]
[1770042549290,3.01857011,103.48,103.44,3.59644976]
[1770042549491,3.01857011,103.51,103.48,3.13410564]
[1770042550177,3.01857011,103.51,103.47,6.7305554]
[1770042550796,3.01857011,103.51,103.48,3.13410564]
[1770042550998,3.01857011,103.51,103.48,6.7305554]
[1770042551287,0.1,103.52,103.49,6.7305554]
[1770042551490,3.11857011,103.52,103.49,3.13410564]
[1770042551806,3.11857011,103.52,103.49,6.7305554]
[1770042552208,0.1,103.52,103.5,3.13410564]
[1770042552513,0.1,103.53,103.51,6.7305554]
[1770042552804,3.01857011,103.55,103.52,6.7305554]
[1770042553112,2.69297272,103.56,103.55,3.13410564]
[1770042553293,3.01857011,103.56,103.53,4.62791226]
[1770042554099,3.01857011,103.57,103.53,4.62791226]
[1770042554399,3.01857011,103.57,103.54,4.65488617]
[1770042554596,3.01857011,103.57,103.54,3.59644976]
[1770042555710,3.01857011,103.57,103.53,3.59644976]
[1770042555711,3.01857011,103.56,103.53,3.59644976]
[1770042556091,3.01857011,103.56,103.53,4.70798638]
[1770042557009,3.01857011,103.57,103.53,4.70798638]
[1770042557212,3.01857011,103.57,103.54,3.59644976]
[1770042558926,3.01857011,103.57,103.54,4.75981634]
[1770042559511,0.1,103.58,103.54,4.75981634]
[1770042559512,3.11857011,103.58,103.54,4.75981634]
[1770042559702,3.11857011,103.58,103.55,4.78528503]
[1770042560103,3.29081295,103.57,103.54,3.59644976]
[1770042560412,3.29081295,103.57,103.53,4.83536331]
[1770042561492,3.29081295,103.57,103.53,1.26350079]
[1770042561693,3.29081295,103.57,103.54,4.85995055]
[1770042564811,3.29081295,103.57,103.54,3.59644976]
[1770042565111,3.39081295,103.58,103.54,4.95563666]
[1770042565309,3.29081295,103.57,103.53,4.95563666]
[1770042566919,3.29081295,103.56,103.52,4.9788573]
[1770042567216,3.29081295,103.56,103.53,5.00187134]
[1770042568416,3.29081295,103.56,103.54,3.59644976]
[1770042568607,3.29081295,103.56,103.53,5.00187134]
[1770042570220,3.29081295,103.57,103.53,5.00187134]
[1770042570395,3.29081295,103.57,103.54,3.59644976]
[1770042570818,3.29081295,103.57,103.54,5.06918604]
[1770042571014,3.29081295,103.57,103.55,3.59644976]
[1770042571214,3.39081295,103.58,103.55,1.49472125]
[1770042571408,3.39081295,103.58,103.55,5.09117101]
[1770042571616,3.39081295,103.58,103.55,3.59644976]
[1770042572498,3.39081295,103.58,103.55,5.11280968]
[1770042572712,0.1,103.58,103.56,5.11280968]
[1770042573809,0.1,103.58,103.55,5.13419179]
[1770042574609,0.1,103.58,103.56,3.59644976]
[1770042576021,0.1,103.59,103.57,1.50056823]
[1770042576521,0.1,103.59,103.56,5.09701799]
[1770042577106,3.39081295,103.59,103.56,5.09701799]
[1770042577299,3.29081295,103.58,103.54,5.11771202]
[1770042577504,3.29081295,103.57,103.53,5.11771202]
[1770042577806,3.29081295,103.57,103.54,1.52126226]
[1770042578221,3.29081295,103.57,103.51,4.27527085]
[1770042578538,6.88726271,103.53,103.5,1.54170438]
[1770042578707,3.29081295,103.54,103.5,5.13815414]
[1770042578904,6.88726271,103.54,103.5,5.13815414]
[1770042579608,3.29081295,103.53,103.5,1.54170438]
[1770042580424,6.88726271,103.53,103.49,5.17832009]
[1770042582105,6.88726271,103.53,103.5,1.62123465]
[1770042582805,3.29081295,103.52,103.49,1.62123465]
[1770042583221,6.88726271,103.52,103.49,1.62123465]
[1770042583420,3.29081295,103.51,103.48,1.64057306]
[1770042584024,6.88726271,103.51,103.47,1.65966958]
[1770042584214,3.29081295,103.51,103.48,1.65966958]
[1770042585421,3.29081295,103.52,103.49,1.67854849]
[1770042585726,3.29081295,103.52,103.48,3.59644976]
[1770042585918,3.29081295,103.52,103.48,5.27499825]
[1770042587122,6.88726271,103.52,103.48,5.27499825]
[1770042587614,3.29081295,103.52,103.49,5.33043583]
[1770042588023,3.29081295,103.52,103.49,1.73398607]
[1770042588927,6.88726271,103.52,103.49,1.73398607]
[1770042590131,3.29081295,103.52,103.49,1.73398607]
[1770042591914,3.29081295,103.52,103.49,5.33043583]
[1770042593524,3.29081295,103.52,103.49,14.99319324]
[1770042593707,3.75914274,103.54,103.51,1.85591095]
[1770042595336,3.75914274,103.54,103.5,5.4853562]
[1770042596736,3.75914274,103.56,103.52,5.50161805]
[1770042597319,3.75914274,103.56,103.52,3.59644976]
[1770042597633,3.75914274,103.55,103.51,5.51762843]
[1770042598030,3.75914274,103.55,103.52,1.93705384]
[1770042598534,3.75914274,103.56,103.53,5.5335036]
[1770042599121,3.75914274,103.56,103.52,15.20885431]
[1770042599418,3.75914274,103.56,103.52,5.5491841]
[1770042600318,3.75914274,103.53,103.49,11.63023381]
[1770042600638,3.75914274,103.54,103.48,1.96818454]
[1770042600817,3.75914274,103.52,103.49,5.5646343]
[1770042601018,3.75914274,103.54,103.51,5.58000654]
[1770042601266,3.75914274,103.56,103.53,1.98355678]
[1770042601460,7.74524108,103.55,103.45,30.43644976]
[1770042601613,4.00662975,103.52,103.46,0.14216157]
[1770042601958,4.27527085,103.58,103.51,3.59644976]
[1770042601959,4.00662975,103.58,103.51,3.59644976]
[1770042602240,4.00662975,103.58,103.55,3.59644976]
[1770042602417,4.39095289,103.59,103.56,3.59644976]
[1770042602618,0.1,103.59,103.58,3.59644976]
[1770042602853,0.1,103.61,103.58,3.59644976]
[1770042603065,4.10662975,103.61,103.55,3.59644976]
[1770042603269,4.10662975,103.61,103.58,3.59644976]
[1770042603478,4.00662975,103.59,103.55,3.59644976]
[1770042603768,4.00662975,103.59,103.53,0.03909522]
[1770042603769,3.59644976,103.58,103.53,0.03909522]
[1770042603980,4.10662975,103.61,103.57,3.63554498]
[1770042604144,4.10662975,103.61,103.58,3.59644976]
[1770042604357,4.10662975,103.61,103.55,37.39634415]
[1770042604358,4.00662975,103.6,103.56,3.65475583]
[1770042604554,4.10662975,103.61,103.58,3.59644976]
[1770042604771,4.10662975,103.61,103.58,3.58556553]
[1770042605161,4.10662975,103.61,103.55,37.38545992]
[1770042605162,0.1,103.61,103.6,3.58556553]
[1770042605369,0.1,103.61,103.59,3.58556553]
[1770042605971,0.1,103.61,103.6,3.58556553]
[1770042606180,6.33627857,103.65,103.6,3.58556553]
[1770042606181,10.39094859,103.65,103.6,3.58556553]
[1770042606357,4.15467002,103.68,103.64,3.58556553]
[1770042606553,4.15467002,103.68,103.65,3.58556553]
[1770042607158,0.1,103.7,103.67,3.58556553]
[1770042607474,0.1,103.72,103.69,3.58556553]
[1770042607770,0.1,103.72,103.71,3.58556553]
[1770042607966,6.3147478,103.73,103.71,3.58556553]
[1770042608271,10.27036219,103.79,103.72,3.58556553]
[1770042608470,4.07333652,103.77,103.67,33.76097231]
[1770042608661,4.07333652,103.75,103.72,3.58556553]
[1770042608985,7.65890205,103.74,103.66,9.64667294]
[1770042609160,6.19702567,103.79,103.66,9.64667294]
[1770042609161,4.07333652,103.72,103.66,9.64667294]
[1770042609358,4.07333652,103.74,103.71,3.58556553]
[1770042609558,4.27527085,103.78,103.73,3.58556553]
[1770042609559,4.07333652,103.77,103.73,3.58556553]
[1770042609762,6.19702567,103.79,103.76,3.58556553]
[1770042609961,48.2386145,103.9,103.79,0.03658781]
[1770042609962,4.07333652,103.84,103.79,0.03658781]
[1770042610160,4.07333652,103.84,103.81,3.58556553]
[1770042610361,6.06411325,103.88,103.84,0.03658781]
[1770042610573,4.09163136,103.9,103.79,26.82]
[1770042610874,0.3201169,103.95,103.79,26.82]
[1770042610875,6.76897969,103.94,103.9,4.27527085]
[1770042611052,6.76897969,103.94,103.92,8.91413706]
[1770042611253,0.60261756,103.94,103.93,8.91413706]
[1770042611463,10.0,104.0,103.96,4.27527085]
[1770042611665,10.0,104.0,103.96,8.91413706]
[1770042611972,10.0,104.0,103.99,8.91413706]
[1770042611973,7.82626365,104.0,103.99,8.91413706]
[1770042612165,7.82626365,104.0,103.98,8.91413706]
[1770042612370,4.1095448,103.99,103.93,0.28432314]
[1770042612557,11.93580845,104.0,103.97,8.91413706]
[1770042612756,11.93580845,104.0,103.95,9.61941438]
[1770042612976,7.82626365,104.0,103.96,4.27527085]
[1770042613171,7.82626365,104.0,103.96,8.91413706]
[1770042613455,7.82626365,104.0,103.9,26.82]
[1770042613456,4.1095448,103.99,103.97,8.91413706]
[1770042613665,4.1095448,103.99,103.95,9.61977093]
[1770042613666,7.82626365,104.0,103.95,9.62000962]
[1770042613874,7.82626365,104.0,103.96,3.69647496]
[1770042614265,7.82626365,104.0,103.95,0.28432314]
[1770042614468,7.82626365,104.0,103.94,9.62085101]
[1770042614670,7.82626365,104.0,103.94,3.69647496]
[1770042614974,7.82626365,104.0,103.98,8.91413706]
[1770042615271,3.64541589,104.0,103.98,4.27527085]
[1770042615478,3.64541589,104.0,103.99,8.91413706]
[1770042615665,4.14519628,104.02,103.94,33.67308461]
[1770042615865,4.14519628,103.98,103.88,8.91413706]
[1770042616053,4.14519628,103.93,103.89,8.91413706]
[1770042616255,4.14519628,103.93,103.88,9.62557885]
[1770042616256,4.14519628,103.91,103.84,24.07337256]
[1770042616469,0.28432314,103.91,103.88,8.91413706]
[1770042616673,4.14519628,103.92,103.84,9.62949018]
[1770042616674,4.14519628,103.9,103.84,9.62949018]
[1770042616881,4.14519628,103.89,103.85,8.91413706]
[1770042617079,13.18940791,103.95,103.84,0.03594221]
[1770042617080,4.14519628,103.9,103.84,0.03594221]
[1770042617377,4.14519628,103.92,103.88,8.91413706]
[1770042617582,4.14519628,103.96,103.9,8.91413706]
[1770042617757,13.05933334,103.98,103.93,8.91413706]
[1770042617957,4.14519628,104.0,103.97,8.91413706]
[1770042618359,4.14519628,104.0,103.96,8.91413706]
[1770042618566,4.14519628,104.0,103.94,4.38188601]
[1770042618567,4.14519628,103.96,103.91,8.91413706]
[1770042618870,4.14519628,103.96,103.88,0.10661516]
[1770042619079,4.14519628,103.96,103.92,8.91413706]
[1770042619366,13.05933334,103.96,103.91,18.53769646]
[1770042619572,4.14519628,103.96,103.91,18.53769646]
[1770042619757,4.14519628,103.97,103.93,8.91413706]
[1770042619952,4.14519628,103.94,103.89,8.91413706]
[1770042620156,4.14519628,103.94,103.88,0.20973371]
[1770042620376,4.14519628,103.94,103.9,8.91413706]
[1770042620571,4.14519628,103.94,103.88,0.20973371]
[1770042620771,4.14519628,103.91,103.86,0.20973371]
[1770042621078,0.28432314,103.95,103.8,0.24333226]
[1770042621079,4.14519628,103.86,103.8,0.24333226]
[1770042621576,4.14519628,103.9,103.83,0.24333226]
[1770042621782,4.14519628,103.92,103.89,8.91413706]
[1770042621970,4.14519628,103.94,103.9,8.91413706]
[1770042622276,5.36086188,104.01,103.88,0.24333226]
[1770042622277,4.14519628,103.96,103.91,8.91413706]
[1770042622481,4.14519628,103.98,103.94,8.91413706]
[1770042622686,13.05933334,103.97,103.92,8.91413706]
[1770042622977,4.14519628,103.96,103.92,8.91413706]
[1770042623163,4.14519628,103.96,103.9,0.30939199]
[1770042623365,13.05933334,103.96,103.91,8.91413706]
[1770042623564,4.14519628,103.96,103.93,8.91413706]
[1770042623764,4.14519628,103.96,103.92,8.91413706]
[1770042623986,4.14519628,104.0,103.95,8.91413706]
[1770042624165,13.05933334,103.98,103.93,9.25596179]
[1770042624678,4.14519628,103.98,103.94,8.91413706]
[1770042624888,4.14519628,103.95,103.91,8.91413706]
[1770042625267,4.14519628,103.95,103.89,0.34182473]
[1770042625268,4.14519628,103.94,103.89,0.34182473]
[1770042625584,13.05933334,103.94,103.89,9.25596179]
[1770042625788,8.91413706,103.93,103.89,8.91413706]
[1770042626089,4.14519628,103.94,103.87,13.94877503]
[1770042626090,4.14519628,103.9,103.87,13.94877503]
[1770042626271,4.14519628,103.9,103.87,5.03463797]
[1770042626587,4.14519628,103.89,103.87,5.03463797]
[1770042627179,3.9138907,103.89,103.84,8.91413706]
[1770042627382,3.9138907,103.89,103.85,8.91413706]
[1770042627680,3.9138907,103.93,103.88,8.91413706]
[1770042627863,3.9138907,103.93,103.9,8.91413706]
[1770042628264,3.9138907,103.96,103.92,8.91413706]
[1770042628479,5.36086188,104.01,103.88,18.54033851]
[1770042628480,3.9138907,103.98,103.91,3.37144528]
[1770042628695,3.9138907,104.04,103.98,3.37144528]
[1770042629003,3.9138907,104.03,103.98,3.37144528]
[1770042629287,3.9138907,104.03,103.95,13.18940791]
[1770042629288,1.71561291,104.12,104.06,4.27527085]
[1770042629470,5.02721789,104.13,104.11,8.91413706]
[1770042629669,2.91376675,104.14,104.07,0.28432314]
[1770042629871,6.33689126,104.2,104.14,4.27527085]
[1770042630087,4.4011738,104.19,104.09,0.04454254]
[1770042630289,4.4011738,104.18,104.12,4.81590479]
[1770042630586,18.1464667,104.13,104.06,4.12664275]
[1770042630887,14.232576,104.12,104.08,4.12664275]
[1770042631097,3.9138907,104.14,104.04,18.35921875]
[1770042631294,3.9138907,104.07,103.99,4.12664275]
[1770042631585,0.28432314,104.06,104.0,4.12664275]
[1770042631890,6.09556169,104.16,104.05,18.35921875]
[1770042632064,3.9138907,104.15,104.07,4.12664275]
[1770042632267,3.9138907,104.14,104.07,4.12664275]
[1770042632579,14.232576,104.12,104.07,18.35921875]
[1770042632780,6.11031033,104.15,104.05,4.12664275]
[1770042632982,20.34288633,104.15,104.1,14.232576]
[1770042633179,6.11031033,104.15,104.1,4.12664275]
[1770042633382,3.9138907,104.14,104.08,14.232576]
[1770042633590,14.232576,104.13,104.07,18.35921875]
[1770042633885,3.9138907,104.05,103.97,4.12664275]
[1770042634070,14.232576,104.03,103.98,4.12664275]
[1770042634270,3.9138907,104.04,103.97,4.12664275]
[1770042634470,3.9138907,104.11,104.01,4.12664275]
[1770042634672,40.972576,104.16,104.03,4.12664275]
[1770042634673,14.232576,104.08,104.03,4.12664275]
[1770042634988,3.9138907,104.17,104.08,4.12664275]
[1770042635289,14.232576,104.09,104.03,14.232576]
[1770042635493,0.14216157,104.07,103.98,18.35921875]
[1770042635691,0.14216157,104.08,104.01,4.12664275]
[1770042635896,14.232576,104.07,104.03,4.12664275]
[1770042636085,14.232576,104.04,103.99,14.232576]
[1770042636286,3.9138907,104.08,103.99,4.12664275]
[1770042636478,18.43078984,104.09,104.04,14.232576]
[1770042636676,3.9138907,104.09,104.04,14.232576]
[1770042636994,3.9138907,104.09,104.03,4.12664275]
[1770042636995,0.14216157,104.08,104.03,14.232576]
[1770042637171,14.232576,104.09,104.02,4.12664275]
[1770042637378,3.9138907,104.14,104.07,4.12664275]
[1770042637578,18.1464667,104.14,104.08,14.232576]
[1770042637775,3.9138907,104.19,104.1,4.12664275]
[1770042637990,16.25148648,104.24,104.1,4.12664275]
[1770042637991,18.1464667,104.17,104.1,4.12664275]
[1770042638195,14.232576,104.11,104.05,4.12664275]
[1770042638392,3.9138907,104.09,104.03,4.12664275]
[1770042638691,3.9138907,104.09,103.99,24.04040387]
[1770042638692,0.14216157,104.07,104.01,4.12664275]
[1770042638897,18.1464667,104.02,103.93,9.62110412]
[1770042639202,0.28432314,104.04,103.94,4.12664275]
[1770042639203,14.232576,103.98,103.94,4.12664275]
[1770042639486,3.91356557,104.03,103.97,14.232576]
[1770042639688,14.232576,104.03,103.98,18.35921875]
[1770042639890,14.232576,104.04,103.99,18.35921875]
[1770042640094,14.232576,104.01,103.96,14.232576]
[1770042640273,4.13105468,104.06,103.98,18.35921875]
[1770042640472,14.232576,104.03,103.98,18.35921875]
[1770042640795,14.232576,104.04,103.98,4.27527085]
[1770042640995,14.232576,104.04,103.99,14.232576]
[1770042641295,3.9138907,104.05,104.0,14.232576]
[1770042641500,3.9138907,104.05,104.01,14.232576]
[1770042641685,14.232576,104.05,104.0,14.232576]
[1770042641874,18.1464667,104.05,104.0,14.232576]
[1770042642079,14.232576,104.06,104.01,14.232576]
[1770042642279,14.232576,104.06,103.98,4.27527085]
[1770042642593,18.1464667,104.06,104.01,14.232576]
[1770042642795,14.232576,104.04,103.99,14.232576]
[1770042642987,0.28432314,104.06,104.01,14.232576]
[1770042643194,3.9138907,104.06,104.01,14.232576]
[1770042643495,3.9138907,104.05,104.01,14.232576]
[1770042643700,3.9138907,104.04,103.99,4.12664275]
[1770042643895,3.9138907,104.06,104.02,14.232576]
[1770042644200,74.96314328,104.17,104.05,14.232576]
[1770042644201,3.9138907,104.12,104.05,14.232576]
[1770042644399,18.1464667,104.09,104.03,18.35921875]
[1770042644701,3.9138907,104.11,104.06,14.232576]
[1770042644905,3.9138907,104.15,104.09,18.35921875]
[1770042645113,3.9138907,104.15,104.1,14.232576]
[1770042645283,3.9138907,104.13,104.09,14.232576]
[1770042645478,3.9138907,104.17,104.12,14.232576]
[1770042645680,3.9138907,104.19,104.14,14.232576]
[1770042645986,3.9138907,104.24,104.18,14.232576]
[1770042646179,1.12,104.3,104.22,14.232576]
[1770042646180,3.9138907,104.26,104.22,14.232576]
[1770042646580,3.9138907,104.28,104.21,4.12664275]
[1770042646780,3.9138907,104.25,104.16,33.60184873]
[1770042646990,3.9138907,104.21,104.12,9.60423005]
[1770042647187,3.9138907,104.17,104.12,14.232576]
[1770042647481,3.9138907,104.18,104.12,14.232576]
[1770042647678,0.14216157,104.19,104.14,14.232576]
[1770042647899,3.75590779,104.29,104.18,14.232576]
[1770042648079,3.75590779,104.29,104.15,9.60143294]
[1770042648080,14.232576,104.24,104.15,37.8805444]
[1770042648280,17.98848379,104.16,104.08,9.60788907]
[1770042648486,3.75590779,104.24,104.15,14.232576]
[1770042648688,17.98848379,104.19,104.13,14.232576]
[1770042648887,3.75590779,104.19,104.13,13.24139714]
[1770042649097,14.232576,104.19,104.14,3.63817509]
[1770042649291,3.75590779,104.2,104.14,27.47298086]
[1770042649506,17.98848379,104.2,104.15,14.232576]
[1770042649696,17.98848379,104.2,104.09,52.20349714]
[1770042649697,3.75590779,104.18,104.12,3.63817509]
[1770042649897,3.713109,104.16,104.1,3.68942749]
[1770042650205,3.713109,104.17,104.12,3.68942749]
[1770042650382,14.232576,104.15,104.1,17.92200349]
[1770042650589,3.713109,104.24,104.12,3.68942749]
[1770042650781,3.713109,104.21,104.11,3.68942749]
[1770042651001,3.713109,104.21,104.16,14.232576]
[1770042651196,14.232576,104.17,104.11,3.68942749]
[1770042651399,3.713109,104.13,104.07,3.68942749]
[1770042651578,3.713109,104.17,104.12,14.232576]
[1770042651778,3.713109,104.19,104.14,14.232576]
[1770042651993,3.713109,104.19,104.13,3.68942749]
[1770042652198,14.232576,104.28,104.17,14.232576]
[1770042652199,14.232576,104.22,104.17,14.232576]
[1770042652394,1.12,104.3,104.22,3.68942749]
[1770042652593,1.12,104.3,104.25,3.68942749]
[1770042652804,3.713109,104.29,104.23,3.68942749]
[1770042653089,3.713109,104.29,104.21,14.232576]
[1770042653282,14.232576,104.25,104.2,17.92200349]
[1770042653707,14.232576,104.24,104.2,3.68942749]
[1770042653911,14.232576,104.25,104.2,14.232576]
[1770042654092,17.945685,104.24,104.18,3.68942749]
[1770042654294,17.945685,104.25,104.19,17.92200349]
[1770042654496,3.713109,104.25,104.19,3.68942749]
[1770042654811,14.232576,104.22,104.17,17.92200349]
[1770042655106,14.232576,104.28,104.14,17.92200349]
[1770042655107,17.945685,104.2,104.14,17.92200349]
[1770042655284,3.713109,104.22,104.17,14.232576]
[1770042655489,1.12,104.3,104.13,9.60285334]
[1770042655490,14.232576,104.24,104.19,14.232576]
[1770042655688,3.713109,104.26,104.18,3.68942749]
[1770042655905,14.232576,104.23,104.19,3.68942749]
[1770042656205,3.713109,104.25,104.15,3.68942749]
[1770042656507,14.232576,104.22,104.17,13.28848876]
[1770042656688,3.713109,104.23,104.16,17.92200349]
[1770042656887,17.945685,104.23,104.18,14.232576]
[1770042657206,3.713109,104.25,104.19,27.51950606]
[1770042657408,14.232576,104.22,104.17,3.68942749]
[1770042657707,3.713109,104.22,104.15,3.68942749]
[1770042657892,3.713109,104.29,104.19,17.92200349]
[1770042658212,14.232576,104.23,104.17,3.68942749]
[1770042658393,3.713109,104.24,104.15,13.29062861]
[1770042658905,14.232576,104.23,104.18,14.232576]
[1770042659106,14.232576,104.19,104.14,17.92200349]
[1770042659290,17.945685,104.22,104.17,14.232576]
[1770042659492,1.12,104.3,104.2,17.92200349]
[1770042659493,17.945685,104.26,104.2,17.92200349]
[1770042659805,14.232576,104.24,104.19,14.232576]
[1770042660004,3.713109,104.23,104.18,14.232576]
[1770042660304,17.945685,104.22,104.15,3.68942749]
[1770042660493,14.232576,104.21,104.16,14.232576]
[1770042660695,3.713109,104.18,104.08,3.68942749]
[1770042660895,3.713109,104.16,104.11,17.92200349]
[1770042661194,3.713109,104.19,104.13,3.68942749]
[1770042661394,14.232576,104.18,104.13,17.92200349]
[1770042661598,3.713109,104.13,104.05,3.68942749]
[1770042661802,14.232576,104.08,104.03,14.232576]
[1770042661995,14.232576,104.07,104.02,27.53533718]
[1770042662190,14.232576,104.1,104.05,14.232576]
[1770042662395,14.232576,104.1,104.06,3.68942749]
[1770042662697,17.945685,104.07,104.01,17.92200349]
[1770042662898,17.945685,104.03,104.0,0.2]
[1770042663091,3.713109,104.03,104.0,0.2]
[1770042663287,3.713109,104.05,104.0,0.2]
[1770042663692,17.945685,104.01,103.95,3.68942749]
[1770042663894,14.232576,103.97,103.92,3.68942749]
[1770042664114,14.232576,103.94,103.88,3.68942749]
[1770042664294,14.232576,103.91,103.86,17.92200349]
[1770042664500,14.232576,103.89,103.86,3.68942749]
[1770042664696,3.713109,103.95,103.88,17.92200349]
[1770042665010,14.232576,103.9,103.85,14.232576]
[1770042665317,14.232576,103.9,103.84,13.3188255]
[1770042665318,14.232576,103.9,103.84,3.68942749]
[1770042665525,17.945685,103.88,103.82,14.232576]
[1770042665821,17.945685,103.87,103.8,3.68942749]
[1770042666027,3.713109,103.88,103.82,3.68942749]
[1770042666197,14.232576,103.88,103.83,3.68942749]
[1770042666398,3.713109,103.85,103.78,3.68942749]
[1770042666597,3.713109,103.84,103.78,27.64914937]
[1770042666821,18.0371211,103.84,103.78,13.32513727]
[1770042667013,3.713109,103.84,103.78,3.68942749]
[1770042667222,14.3240121,103.83,103.78,3.68942749]
[1770042667523,14.3240121,103.83,103.74,24.29819146]
[1770042667524,14.3240121,103.81,103.76,18.01343959]
[1770042667711,14.3240121,103.84,103.79,14.3240121]
[1770042667912,14.3240121,103.84,103.78,3.68942749]
[1770042668209,14.3240121,103.84,103.79,3.68942749]
[1770042668392,18.0371211,103.84,103.76,3.68942749]
[1770042668598,18.0371211,103.86,103.8,14.3240121]